[Event "Titled Tuesday Blitz May 24 Late 2022"]
[White "Santos Ruiz, Miguel"]
[Black "Sargsyan, Anna M."]
[WhiteFideId "22291482"]
[BlackFideId "13308130"]
[WhiteElo "2486"]
[BlackElo "2271"]
[Result "1-0"]
[Round "03"]
[TimeControl "180+1"]
[Date "2022.05.24"]
[WhiteClock "0:00:19"]
[BlackClock "0:00:19"]

1. d4 {[%clk 0:03:00]}  d5 {[%clk 0:02:58]} 2. Nf3 {[%clk 0:03:00]}  Nf6 {[%clk 0:02:57]} 3. Bf4 {[%clk 0:03:00]}  c5 {[%clk 0:02:56]} 4. e3 {[%clk 0:03:00]}  Nc6 {[%clk 0:02:56]} 5. Nbd2 {[%clk 0:03:00]}  Bg4 {[%clk 0:02:57]} 6. h3 {[%clk 0:02:51]}  Bh5 {[%clk 0:02:57]} 7. c3 {[%clk 0:02:44]}  e6 {[%clk 0:02:56]} 8. Qb3 {[%clk 0:02:40]}  Qb6 {[%clk 0:02:51]} 9. g4 {[%clk 0:02:35]}  Bg6 {[%clk 0:02:51]} 10. Nh4 {[%clk 0:02:35]}  c4 {[%clk 0:02:43]} 11. Qxb6 {[%clk 0:02:32]}  axb6 {[%clk 0:02:44]} 12. Nxg6 {[%clk 0:02:30]}  hxg6 {[%clk 0:02:45]} 13. g5 {[%clk 0:02:22]}  Nh5 {[%clk 0:02:38]} 14. Bh2 {[%clk 0:02:15]}  b5 {[%clk 0:02:39]} 15. e4 {[%clk 0:01:55]}  b4 {[%clk 0:02:31]} 16. exd5 {[%clk 0:01:55]}  exd5 {[%clk 0:02:32]} 17. Bg2 {[%clk 0:01:54]}  bxc3 {[%clk 0:02:32]} 18. bxc3 {[%clk 0:01:54]}  Ra5 {[%clk 0:02:27]} 19. O-O {[%clk 0:01:48]}  Kd7 {[%clk 0:02:26]} 20. Rab1 {[%clk 0:01:42]}  Kc8 {[%clk 0:02:24]} 21. Rb6 {[%clk 0:01:27]}  Be7 {[%clk 0:02:14]} 22. Nxc4 {[%clk 0:01:03]}  dxc4 {[%clk 0:01:27]} 23. Bxc6 {[%clk 0:00:59]}  bxc6 {[%clk 0:01:28]} 24. Rb8+ {[%clk 0:00:59]}  Kd7 {[%clk 0:01:29]} 25. Rxh8 {[%clk 0:00:57]}  Bxg5 {[%clk 0:01:15]} 26. Rb1 {[%clk 0:00:47]}  Rxa2 {[%clk 0:01:11]} 27. Rb7+ {[%clk 0:00:46]}  Ke6 {[%clk 0:01:12]} 28. Re8+ {[%clk 0:00:46]}  Kf6 {[%clk 0:00:58]} 29. Be5+ {[%clk 0:00:46]}  Kf5 {[%clk 0:00:58]} 30. Rxf7+ {[%clk 0:00:46]}  Bf6 {[%clk 0:00:58]} 31. Bh2 {[%clk 0:00:40]}  g5 {[%clk 0:00:52]} 32. Rc7 {[%clk 0:00:33]}  Rc2 {[%clk 0:00:46]} 33. Rxc6 {[%clk 0:00:24]}  Rxc3 {[%clk 0:00:46]} 34. d5 {[%clk 0:00:24]}  Rc1+ {[%clk 0:00:23]} 35. Kg2 {[%clk 0:00:24]}  c3 {[%clk 0:00:24]} 36. d6 {[%clk 0:00:22]}  Nf4+ {[%clk 0:00:22]} 37. Bxf4 {[%clk 0:00:22]}  gxf4 {[%clk 0:00:23]} 38. d7 {[%clk 0:00:21]}  c2 {[%clk 0:00:21]} 39. Rxf6+ {[%clk 0:00:18]}  gxf6 {[%clk 0:00:21]} 40. d8=Q {[%clk 0:00:19]}  Rg1+ {[%clk 0:00:20]} 41. Kxg1 {[%clk 0:00:19]}  c1=Q+ {[%clk 0:00:20]} 42. Kh2 {[%clk 0:00:20]}  f3 {[%clk 0:00:19]} 43. Qc8+ {[%clk 0:00:19]} 1-0


[Site "https://www.chess.com"]

[Event "Titled Tuesday Blitz May 24 Late 2022"]
[White "Sarkar, Justin"]
[Black "Krishnan, Varun"]
[WhiteFideId "2010011"]
[BlackFideId "5054508"]
[WhiteElo "2020"]
[BlackElo "2548"]
[Result "1-0"]
[Round "03"]
[TimeControl "180+1"]
[Date "2022.05.25"]
[WhiteClock "0:00:09"]
[BlackClock "0:00:14"]

1. e4 {[%clk 0:02:57]}  c5 {[%clk 0:02:58]} 2. Nf3 {[%clk 0:02:56]}  Nc6 {[%clk 0:02:58]} 3. Nc3 {[%clk 0:02:56]}  e6 {[%clk 0:02:57]} 4. d4 {[%clk 0:02:54]}  cxd4 {[%clk 0:02:58]} 5. Nxd4 {[%clk 0:02:54]}  Qc7 {[%clk 0:02:58]} 6. Be3 {[%clk 0:02:46]}  Nf6 {[%clk 0:02:57]} 7. f4 {[%clk 0:02:36]}  Bb4 {[%clk 0:02:55]} 8. e5 {[%clk 0:02:30]}  Nd5 {[%clk 0:02:50]} 9. Nb5 {[%clk 0:02:28]}  Qa5 {[%clk 0:02:47]} 10. Bd2 {[%clk 0:02:22]}  a6 {[%clk 0:02:35]} 11. Nxd5 {[%clk 0:02:14]}  exd5 {[%clk 0:02:23]} 12. Nd6+ {[%clk 0:02:06]}  Kf8 {[%clk 0:02:18]} 13. a3 {[%clk 0:01:56]}  Bxd2+ {[%clk 0:02:14]} 14. Qxd2 {[%clk 0:01:57]}  Qxd2+ {[%clk 0:02:15]} 15. Kxd2 {[%clk 0:01:58]}  g6 {[%clk 0:01:56]} 16. g3 {[%clk 0:01:55]}  Ke7 {[%clk 0:01:56]} 17. Bg2 {[%clk 0:01:52]}  f6 {[%clk 0:01:53]} 18. Rae1 {[%clk 0:01:24]}  d4 {[%clk 0:01:45]} 19. Nc4 {[%clk 0:01:05]}  Rb8 {[%clk 0:01:19]} 20. exf6+ {[%clk 0:01:00]}  Kxf6 {[%clk 0:01:18]} 21. Nd6 {[%clk 0:00:59]}  Ne7 {[%clk 0:01:05]} 22. g4 {[%clk 0:00:51]}  Nc6 {[%clk 0:00:40]} 23. g5+ {[%clk 0:00:50]}  Kg7 {[%clk 0:00:40]} 24. Bxc6 {[%clk 0:00:40]}  dxc6 {[%clk 0:00:35]} 25. Re7+ {[%clk 0:00:39]}  Kf8 {[%clk 0:00:35]} 26. Rhe1 {[%clk 0:00:34]}  Bf5 {[%clk 0:00:17]} 27. Rf7+ {[%clk 0:00:33]}  Kg8 {[%clk 0:00:17]} 28. Ree7 {[%clk 0:00:33]}  Be6 {[%clk 0:00:14]} 29. Rxe6 {[%clk 0:00:28]}  Rf8 {[%clk 0:00:12]} 30. Rxf8+ {[%clk 0:00:22]}  Kxf8 {[%clk 0:00:13]} 31. Re8+ {[%clk 0:00:20]}  Kg7 {[%clk 0:00:13]} 32. Rxh8 {[%clk 0:00:20]}  Kxh8 {[%clk 0:00:14]} 33. Nxb7 {[%clk 0:00:20]}  Kg7 {[%clk 0:00:15]} 34. Kd3 {[%clk 0:00:19]}  h5 {[%clk 0:00:14]} 35. h4 {[%clk 0:00:18]}  Kf7 {[%clk 0:00:14]} 36. Kxd4 {[%clk 0:00:18]}  Ke6 {[%clk 0:00:14]} 37. Nc5+ {[%clk 0:00:17]}  Kf5 {[%clk 0:00:15]} 38. Ke3 {[%clk 0:00:16]}  Kg4 {[%clk 0:00:15]} 39. Nd7 {[%clk 0:00:13]}  Kxh4 {[%clk 0:00:14]} 40. Ne5 {[%clk 0:00:12]}  Kg3 {[%clk 0:00:14]} 41. Nxg6 {[%clk 0:00:12]}  h4 {[%clk 0:00:15]} 42. Nxh4 {[%clk 0:00:12]}  Kxh4 {[%clk 0:00:15]} 43. g6 {[%clk 0:00:12]}  Kg4 {[%clk 0:00:16]} 44. g7 {[%clk 0:00:13]}  Kf5 {[%clk 0:00:15]} 45. g8=Q {[%clk 0:00:12]}  c5 {[%clk 0:00:16]} 46. Qd5+ {[%clk 0:00:12]}  Kg4 {[%clk 0:00:16]} 47. Qxc5 {[%clk 0:00:11]}  Kg3 {[%clk 0:00:15]} 48. Qg5+ {[%clk 0:00:10]}  Kh3 {[%clk 0:00:15]} 49. Kf2 {[%clk 0:00:09]}  Kh2 {[%clk 0:00:14]} 50. Qh5# {[%clk 0:00:09]} 1-0


[Site "https://www.chess.com"]

[Event "Titled Tuesday Blitz May 24 Late 2022"]
[White "Shimanov, Aleksandr"]
[Black "Hasangatin, Ramil"]
[WhiteFideId "4198603"]
[BlackFideId "4122160"]
[WhiteElo "2605"]
[BlackElo "2399"]
[Result "1-0"]
[Round "03"]
[TimeControl "180+1"]
[Date "2022.05.24"]
[WhiteClock "0:00:55"]
[BlackClock "0:00:18"]

1. b3 {[%clk 0:03:00]}  e5 {[%clk 0:02:59]} 2. Bb2 {[%clk 0:03:00]}  d6 {[%clk 0:03:00]} 3. e3 {[%clk 0:02:59]}  Nf6 {[%clk 0:03:00]} 4. d4 {[%clk 0:02:59]}  Nbd7 {[%clk 0:03:00]} 5. Nf3 {[%clk 0:02:55]}  Qe7 {[%clk 0:03:00]} 6. c4 {[%clk 0:02:53]}  g6 {[%clk 0:03:00]} 7. Nc3 {[%clk 0:02:53]}  Bg7 {[%clk 0:03:01]} 8. g3 {[%clk 0:02:52]}  O-O {[%clk 0:02:42]} 9. Bg2 {[%clk 0:02:51]}  exd4 {[%clk 0:02:27]} 10. Nxd4 {[%clk 0:02:52]}  Ne5 {[%clk 0:02:27]} 11. h3 {[%clk 0:02:46]}  c6 {[%clk 0:02:23]} 12. O-O {[%clk 0:02:45]}  h5 {[%clk 0:02:22]} 13. Re1 {[%clk 0:02:23]}  Re8 {[%clk 0:02:21]} 14. f4 {[%clk 0:02:20]}  Ned7 {[%clk 0:02:21]} 15. e4 {[%clk 0:02:18]}  a5 {[%clk 0:02:17]} 16. Qd2 {[%clk 0:02:12]}  Nc5 {[%clk 0:02:05]} 17. Nf3 {[%clk 0:01:43]}  Nfxe4 {[%clk 0:01:53]} 18. Nxe4 {[%clk 0:01:43]}  Nxe4 {[%clk 0:01:54]} 19. Rxe4 {[%clk 0:01:34]}  Qxe4 {[%clk 0:01:55]} 20. Bxg7 {[%clk 0:01:25]}  Qe3+ {[%clk 0:01:00]} 21. Qxe3 {[%clk 0:01:25]}  Rxe3 {[%clk 0:01:01]} 22. Bd4 {[%clk 0:01:14]}  Rd3 {[%clk 0:00:44]} 23. Kf2 {[%clk 0:01:03]}  Bf5 {[%clk 0:00:40]} 24. Bf1 {[%clk 0:01:00]}  a4 {[%clk 0:00:20]} 25. Bxd3 {[%clk 0:00:58]}  Bxd3 {[%clk 0:00:21]} 26. g4 {[%clk 0:00:54]}  hxg4 {[%clk 0:00:18]} 27. hxg4 {[%clk 0:00:55]} 1-0


[Site "https://www.chess.com"]

[Event "Titled Tuesday Blitz May 24 Late 2022"]
[White "Shirov, Alexei"]
[Black "Araujo Sanchez, Josue"]
[WhiteFideId "2209390"]
[BlackFideId "6416896"]
[WhiteElo "2678"]
[BlackElo "2339"]
[Result "1-0"]
[Round "03"]
[TimeControl "180+1"]
[Date "2022.05.25"]
[WhiteClock "0:01:49"]
[BlackClock "0:00:57"]

1. e4 {[%clk 0:03:00]}  c5 {[%clk 0:02:59]} 2. Nc3 {[%clk 0:03:00]}  d6 {[%clk 0:02:59]} 3. d4 {[%clk 0:02:58]}  cxd4 {[%clk 0:02:59]} 4. Qxd4 {[%clk 0:02:58]}  Nc6 {[%clk 0:02:59]} 5. Qd2 {[%clk 0:02:58]}  g6 {[%clk 0:02:59]} 6. b3 {[%clk 0:02:57]}  Bh6 {[%clk 0:03:00]} 7. f4 {[%clk 0:02:56]}  e5 {[%clk 0:03:00]} 8. Nge2 {[%clk 0:02:33]}  Nf6 {[%clk 0:02:58]} 9. Ba3 {[%clk 0:02:30]}  Bg4 {[%clk 0:02:50]} 10. Qxd6 {[%clk 0:02:22]}  Bxe2 {[%clk 0:02:44]} 11. Bxe2 {[%clk 0:02:18]}  Qxd6 {[%clk 0:02:26]} 12. Bxd6 {[%clk 0:02:16]}  O-O-O {[%clk 0:02:23]} 13. Rd1 {[%clk 0:02:11]}  Bxf4 {[%clk 0:01:13]} 14. g3 {[%clk 0:02:09]}  Be3 {[%clk 0:01:08]} 15. Rf1 {[%clk 0:02:08]}  Ne8 {[%clk 0:01:08]} 16. Nb5 {[%clk 0:01:59]}  a6 {[%clk 0:01:05]} 17. Rxf7 {[%clk 0:01:54]}  h5 {[%clk 0:00:57]} 18. Bc4 {[%clk 0:01:49]} 1-0


[Site "https://www.chess.com"]

[Event "Titled Tuesday Blitz May 24 Late 2022"]
[White "Shuvalova, Polina"]
[Black "Roux, Baptiste"]
[WhiteFideId "24171760"]
[BlackFideId "36017450"]
[WhiteElo "2355"]
[BlackElo "1935"]
[Result "1-0"]
[Round "03"]
[TimeControl "180+1"]
[Date "2022.05.25"]
[WhiteClock "0:00:53"]
[BlackClock "0:00:05"]

1. e4 {[%clk 0:03:00]}  e5 {[%clk 0:02:58]} 2. Nf3 {[%clk 0:02:58]}  Nc6 {[%clk 0:02:58]} 3. Bc4 {[%clk 0:02:58]}  g6 {[%clk 0:02:55]} 4. c3 {[%clk 0:02:46]}  Bg7 {[%clk 0:02:55]} 5. d4 {[%clk 0:02:47]}  exd4 {[%clk 0:02:49]} 6. cxd4 {[%clk 0:02:46]}  Nge7 {[%clk 0:02:50]} 7. Nc3 {[%clk 0:02:45]}  O-O {[%clk 0:02:49]} 8. O-O {[%clk 0:02:45]}  Na5 {[%clk 0:02:44]} 9. Be2 {[%clk 0:02:40]}  d5 {[%clk 0:02:41]} 10. exd5 {[%clk 0:02:38]}  Nxd5 {[%clk 0:02:41]} 11. Bg5 {[%clk 0:02:37]}  Qd6 {[%clk 0:02:29]} 12. Rc1 {[%clk 0:02:32]}  Nxc3 {[%clk 0:02:23]} 13. bxc3 {[%clk 0:02:30]}  Be6 {[%clk 0:02:13]} 14. c4 {[%clk 0:02:26]}  h6 {[%clk 0:02:12]} 15. Be3 {[%clk 0:02:25]}  Rad8 {[%clk 0:02:07]} 16. h3 {[%clk 0:02:15]}  b6 {[%clk 0:02:02]} 17. Qd2 {[%clk 0:02:09]}  Kh7 {[%clk 0:02:01]} 18. Rfd1 {[%clk 0:02:09]}  Qa3 {[%clk 0:01:52]} 19. Rc3 {[%clk 0:02:06]}  Qa4 {[%clk 0:01:52]} 20. Rdc1 {[%clk 0:02:00]}  c5 {[%clk 0:01:48]} 21. d5 {[%clk 0:01:59]}  Bf5 {[%clk 0:01:39]} 22. Bf4 {[%clk 0:01:42]}  Rfe8 {[%clk 0:01:35]} 23. Re3 {[%clk 0:01:41]}  Be4 {[%clk 0:01:09]} 24. Bf1 {[%clk 0:01:22]}  Nc6 {[%clk 0:00:52]} 25. Qe1 {[%clk 0:01:14]}  Nd4 {[%clk 0:00:15]} 26. Rxe4 {[%clk 0:01:09]}  Nxf3+ {[%clk 0:00:14]} 27. gxf3 {[%clk 0:01:10]}  f5 {[%clk 0:00:14]} 28. Re6 {[%clk 0:01:08]}  Rxe6 {[%clk 0:00:13]} 29. dxe6 {[%clk 0:01:07]}  g5 {[%clk 0:00:14]} 30. e7 {[%clk 0:01:07]}  Re8 {[%clk 0:00:14]} 31. Bd6 {[%clk 0:01:04]}  Bf6 {[%clk 0:00:15]} 32. Qe6 {[%clk 0:01:02]}  Kg6 {[%clk 0:00:14]} 33. Bd3 {[%clk 0:01:02]}  Qa3 {[%clk 0:00:06]} 34. Qxf5+ {[%clk 0:00:58]}  Kf7 {[%clk 0:00:07]} 35. Re1 {[%clk 0:00:55]}  Rg8 {[%clk 0:00:05]} 36. e8=Q+ {[%clk 0:00:53]} 1-0


[Site "https://www.chess.com"]

[Event "Titled Tuesday Blitz May 24 Late 2022"]
[White "Skliarov, Viktor"]
[Black "Baches Garcia, Guillermo"]
[WhiteFideId "14106736"]
[BlackFideId "2209764"]
[WhiteElo "2229"]
[BlackElo "2470"]
[Result "1-0"]
[Round "03"]
[TimeControl "180+1"]
[Date "2022.05.25"]
[WhiteClock "0:00:21"]
[BlackClock "0:00:21"]

1. e4 {[%clk 0:03:00]}  c5 {[%clk 0:03:00]} 2. Nf3 {[%clk 0:03:00]}  d6 {[%clk 0:03:00]} 3. d4 {[%clk 0:03:00]}  cxd4 {[%clk 0:03:01]} 4. Qxd4 {[%clk 0:03:00]}  Nc6 {[%clk 0:03:00]} 5. Bb5 {[%clk 0:03:00]}  a6 {[%clk 0:03:00]} 6. Bxc6+ {[%clk 0:03:00]}  bxc6 {[%clk 0:03:01]} 7. c4 {[%clk 0:02:58]}  e5 {[%clk 0:03:01]} 8. Qe3 {[%clk 0:02:52]}  Qc7 {[%clk 0:03:00]} 9. O-O {[%clk 0:02:48]}  Be7 {[%clk 0:03:00]} 10. b3 {[%clk 0:02:47]}  Nf6 {[%clk 0:02:58]} 11. h3 {[%clk 0:02:47]}  O-O {[%clk 0:02:58]} 12. Bb2 {[%clk 0:02:46]}  Nd7 {[%clk 0:02:45]} 13. Nc3 {[%clk 0:02:38]}  Nc5 {[%clk 0:02:34]} 14. Rfd1 {[%clk 0:02:09]}  f5 {[%clk 0:02:12]} 15. Ba3 {[%clk 0:01:24]}  Nxe4 {[%clk 0:02:04]} 16. Nxe4 {[%clk 0:01:23]}  fxe4 {[%clk 0:02:03]} 17. Qxe4 {[%clk 0:01:23]}  d5 {[%clk 0:01:37]} 18. cxd5 {[%clk 0:00:36]}  Bxa3 {[%clk 0:01:36]} 19. dxc6 {[%clk 0:00:36]}  Bf5 {[%clk 0:01:26]} 20. Qc4+ {[%clk 0:00:34]}  Kh8 {[%clk 0:01:22]} 21. Re1 {[%clk 0:00:31]}  Bb2 {[%clk 0:01:05]} 22. Rad1 {[%clk 0:00:30]}  e4 {[%clk 0:01:01]} 23. Nd4 {[%clk 0:00:27]}  Bxd4 {[%clk 0:00:53]} 24. Rxd4 {[%clk 0:00:27]}  Rae8 {[%clk 0:00:48]} 25. Qxa6 {[%clk 0:00:26]}  Qf4 {[%clk 0:00:39]} 26. Qe2 {[%clk 0:00:21]}  Qg5 {[%clk 0:00:31]} 27. Qe3 {[%clk 0:00:21]}  Rc8 {[%clk 0:00:21]} 28. Qxg5 {[%clk 0:00:21]} 1-0


[Site "https://www.chess.com"]

[Event "Titled Tuesday Blitz May 24 Late 2022"]
[White "Steinberg, Nitzan"]
[Black "Peralta, Eduardo"]
[WhiteFideId "2801795"]
[BlackFideId "3700062"]
[WhiteElo "2471"]
[BlackElo "2125"]
[Result "1-0"]
[Round "03"]
[TimeControl "180+1"]
[Date "2022.05.24"]
[WhiteClock "0:00:19"]
[BlackClock "0:00:06"]

1. e4 {[%clk 0:03:00]}  c5 {[%clk 0:02:25]} 2. Nc3 {[%clk 0:02:59]}  Nc6 {[%clk 0:02:25]} 3. Nge2 {[%clk 0:02:58]}  g6 {[%clk 0:02:25]} 4. g3 {[%clk 0:02:55]}  Bg7 {[%clk 0:02:24]} 5. Bg2 {[%clk 0:02:56]}  e6 {[%clk 0:02:25]} 6. O-O {[%clk 0:02:56]}  Nge7 {[%clk 0:02:25]} 7. d3 {[%clk 0:02:54]}  d6 {[%clk 0:02:25]} 8. f4 {[%clk 0:02:54]}  Nd4 {[%clk 0:02:19]} 9. Kh1 {[%clk 0:02:54]}  h5 {[%clk 0:02:03]} 10. h3 {[%clk 0:02:46]}  Bd7 {[%clk 0:02:00]} 11. a4 {[%clk 0:02:44]}  Bc6 {[%clk 0:02:01]} 12. Nxd4 {[%clk 0:02:42]}  cxd4 {[%clk 0:02:01]} 13. Ne2 {[%clk 0:02:42]}  Rc8 {[%clk 0:01:58]} 14. b4 {[%clk 0:02:42]}  a6 {[%clk 0:01:57]} 15. Bb2 {[%clk 0:02:42]}  e5 {[%clk 0:01:55]} 16. c3 {[%clk 0:02:33]}  dxc3 {[%clk 0:01:55]} 17. Bxc3 {[%clk 0:02:34]}  O-O {[%clk 0:01:51]} 18. Qd2 {[%clk 0:02:30]}  Bd7 {[%clk 0:01:50]} 19. d4 {[%clk 0:02:26]}  exf4 {[%clk 0:01:39]} 20. Nxf4 {[%clk 0:02:09]}  b5 {[%clk 0:01:33]} 21. axb5 {[%clk 0:02:02]}  Bxb5 {[%clk 0:01:33]} 22. Rfc1 {[%clk 0:02:02]}  Qb6 {[%clk 0:01:15]} 23. Bb2 {[%clk 0:01:50]}  h4 {[%clk 0:01:10]} 24. gxh4 {[%clk 0:01:48]}  Rxc1+ {[%clk 0:01:08]} 25. Rxc1 {[%clk 0:01:48]}  Bh6 {[%clk 0:01:01]} 26. d5 {[%clk 0:01:37]}  Kh7 {[%clk 0:00:59]} 27. h5 {[%clk 0:01:22]}  gxh5 {[%clk 0:00:57]} 28. e5 {[%clk 0:01:18]}  dxe5 {[%clk 0:00:52]} 29. Bxe5 {[%clk 0:01:10]}  Ng6 {[%clk 0:00:51]} 30. Be4 {[%clk 0:01:10]}  f5 {[%clk 0:00:35]} 31. Rc7+ {[%clk 0:00:59]}  Qxc7 {[%clk 0:00:29]} 32. Bxc7 {[%clk 0:00:58]}  fxe4 {[%clk 0:00:29]} 33. Qe3 {[%clk 0:00:39]}  Bxf4 {[%clk 0:00:24]} 34. Bxf4 {[%clk 0:00:39]}  Rxf4 {[%clk 0:00:24]} 35. Qa7+ {[%clk 0:00:35]}  Kh6 {[%clk 0:00:23]} 36. d6 {[%clk 0:00:36]}  Rf1+ {[%clk 0:00:22]} 37. Kh2 {[%clk 0:00:36]}  Rd1 {[%clk 0:00:17]} 38. Qc5 {[%clk 0:00:18]}  Kh7 {[%clk 0:00:15]} 39. Qxh5+ {[%clk 0:00:15]}  Kg7 {[%clk 0:00:14]} 40. Qxd1 {[%clk 0:00:16]}  Nf8 {[%clk 0:00:10]} 41. Qd4+ {[%clk 0:00:17]}  Kf7 {[%clk 0:00:10]} 42. Kg3 {[%clk 0:00:18]}  Nd7 {[%clk 0:00:09]} 43. Qxe4 {[%clk 0:00:18]}  Kf6 {[%clk 0:00:09]} 44. Qe7+ {[%clk 0:00:18]}  Kg6 {[%clk 0:00:09]} 45. h4 {[%clk 0:00:19]}  Kh6 {[%clk 0:00:09]} 46. Qg5+ {[%clk 0:00:18]}  Kh7 {[%clk 0:00:10]} 47. h5 {[%clk 0:00:19]}  Kh8 {[%clk 0:00:06]} 48. h6 {[%clk 0:00:19]} 1-0


[Site "https://www.chess.com"]

[Event "Titled Tuesday Blitz May 24 Late 2022"]
[White "Svane, Rasmus"]
[Black "Gil Alba, Hector Luis"]
[WhiteFideId "4657101"]
[BlackFideId "3504670"]
[WhiteElo "2674"]
[BlackElo "2331"]
[Result "1-0"]
[Round "03"]
[TimeControl "180+1"]
[Date "2022.05.24"]
[WhiteClock "0:01:15"]
[BlackClock "0:00:09"]

1. Nf3 {[%clk 0:03:00]}  Nf6 {[%clk 0:02:58]} 2. g3 {[%clk 0:02:59]}  g6 {[%clk 0:02:58]} 3. Bg2 {[%clk 0:03:00]}  Bg7 {[%clk 0:02:58]} 4. O-O {[%clk 0:03:00]}  O-O {[%clk 0:02:57]} 5. d4 {[%clk 0:03:01]}  d6 {[%clk 0:02:56]} 6. Re1 {[%clk 0:03:01]}  Nc6 {[%clk 0:02:55]} 7. d5 {[%clk 0:03:01]}  Nb4 {[%clk 0:02:51]} 8. c4 {[%clk 0:03:00]}  e5 {[%clk 0:02:45]} 9. a3 {[%clk 0:02:47]}  Na6 {[%clk 0:02:37]} 10. Nc3 {[%clk 0:02:48]}  Nc5 {[%clk 0:02:31]} 11. e4 {[%clk 0:02:37]}  a5 {[%clk 0:02:30]} 12. b3 {[%clk 0:02:34]}  Bd7 {[%clk 0:02:16]} 13. Qc2 {[%clk 0:02:29]}  a4 {[%clk 0:02:11]} 14. b4 {[%clk 0:02:17]}  Nb3 {[%clk 0:02:09]} 15. Rb1 {[%clk 0:02:17]}  Nd4 {[%clk 0:02:00]} 16. Nxd4 {[%clk 0:02:18]}  exd4 {[%clk 0:02:00]} 17. Ne2 {[%clk 0:02:18]}  Re8 {[%clk 0:01:55]} 18. Bb2 {[%clk 0:02:18]}  Ng4 {[%clk 0:01:09]} 19. Nxd4 {[%clk 0:02:08]}  c5 {[%clk 0:01:07]} 20. bxc5 {[%clk 0:02:03]}  dxc5 {[%clk 0:01:06]} 21. Nf3 {[%clk 0:02:02]}  Bxb2 {[%clk 0:00:57]} 22. Qxb2 {[%clk 0:02:03]}  Rb8 {[%clk 0:00:56]} 23. h3 {[%clk 0:02:01]}  Nh6 {[%clk 0:00:53]} 24. e5 {[%clk 0:01:57]}  b5 {[%clk 0:00:53]} 25. cxb5 {[%clk 0:01:50]}  Rxb5 {[%clk 0:00:52]} 26. Qd2 {[%clk 0:01:48]}  Nf5 {[%clk 0:00:48]} 27. Rxb5 {[%clk 0:01:35]}  Bxb5 {[%clk 0:00:47]} 28. g4 {[%clk 0:01:35]}  Ne7 {[%clk 0:00:41]} 29. d6 {[%clk 0:01:27]}  Nc6 {[%clk 0:00:40]} 30. Qd5 {[%clk 0:01:26]}  Qa5 {[%clk 0:00:24]} 31. e6 {[%clk 0:01:22]}  fxe6 {[%clk 0:00:20]} 32. Rxe6 {[%clk 0:01:23]}  Rxe6 {[%clk 0:00:18]} 33. Qxe6+ {[%clk 0:01:24]}  Kg7 {[%clk 0:00:17]} 34. Ng5 {[%clk 0:01:16]}  Qa7 {[%clk 0:00:09]} 35. d7 {[%clk 0:01:15]} 1-0


[Site "https://www.chess.com"]

[Event "Titled Tuesday Blitz May 24 Late 2022"]
[White "Taichman, Ori"]
[Black "Drygalov, Andrey"]
[WhiteFideId "2804069"]
[BlackFideId "24171735"]
[WhiteElo "2227"]
[BlackElo "2540"]
[Result "0-1"]
[Round "03"]
[TimeControl "180+1"]
[Date "2022.05.24"]
[WhiteClock "0:00:03"]
[BlackClock "0:01:26"]

1. e4 {[%clk 0:02:54]}  c5 {[%clk 0:02:59]} 2. b3 {[%clk 0:02:49]}  d6 {[%clk 0:02:57]} 3. Bb2 {[%clk 0:02:48]}  e5 {[%clk 0:02:58]} 4. Bb5+ {[%clk 0:02:46]}  Bd7 {[%clk 0:02:57]} 5. a4 {[%clk 0:02:46]}  Nf6 {[%clk 0:02:57]} 6. Nc3 {[%clk 0:02:44]}  Be7 {[%clk 0:02:57]} 7. Nge2 {[%clk 0:02:41]}  O-O {[%clk 0:02:57]} 8. O-O {[%clk 0:02:41]}  Nc6 {[%clk 0:02:54]} 9. f4 {[%clk 0:02:41]}  a6 {[%clk 0:02:52]} 10. Bc4 {[%clk 0:02:40]}  Nd4 {[%clk 0:02:52]} 11. d3 {[%clk 0:02:33]}  b5 {[%clk 0:02:46]} 12. axb5 {[%clk 0:02:32]}  axb5 {[%clk 0:02:47]} 13. Nxd4 {[%clk 0:02:13]}  Rxa1 {[%clk 0:02:35]} 14. Qxa1 {[%clk 0:02:11]}  bxc4 {[%clk 0:02:36]} 15. Nf5 {[%clk 0:02:09]}  Bxf5 {[%clk 0:02:35]} 16. exf5 {[%clk 0:02:09]}  cxb3 {[%clk 0:02:29]} 17. cxb3 {[%clk 0:02:02]}  exf4 {[%clk 0:02:29]} 18. Rxf4 {[%clk 0:02:02]}  d5 {[%clk 0:02:29]} 19. Ne2 {[%clk 0:01:53]}  d4 {[%clk 0:02:26]} 20. Rf3 {[%clk 0:01:30]}  Nd5 {[%clk 0:02:23]} 21. Ng3 {[%clk 0:01:30]}  Qb8 {[%clk 0:02:16]} 22. Qa4 {[%clk 0:01:27]}  Bd6 {[%clk 0:02:12]} 23. Qc4 {[%clk 0:01:19]}  Ne3 {[%clk 0:02:01]} 24. Qa4 {[%clk 0:00:34]}  Bxg3 {[%clk 0:01:52]} 25. hxg3 {[%clk 0:00:35]}  Qb7 {[%clk 0:01:52]} 26. f6 {[%clk 0:00:33]}  Ra8 {[%clk 0:01:50]} 27. Rxe3 {[%clk 0:00:28]}  dxe3 {[%clk 0:01:48]} 28. Qg4 {[%clk 0:00:25]}  g6 {[%clk 0:01:48]} 29. Qf4 {[%clk 0:00:23]}  Qxb3 {[%clk 0:01:29]} 30. Kh2 {[%clk 0:00:04]}  Qxb2 {[%clk 0:01:27]} 31. Qe4 {[%clk 0:00:01]}  Rf8 {[%clk 0:01:26]} 32. Qf4 {[%clk 0:00:01]}  Qd4 {[%clk 0:01:24]} 33. Qg5 {[%clk 0:00:01]}  h6 {[%clk 0:01:24]} 34. Qxh6 {[%clk 0:00:01]}  Qxf6 {[%clk 0:01:25]} 35. g4 {[%clk 0:00:02]}  Qh8 {[%clk 0:01:25]} 36. g5 {[%clk 0:00:02]}  Qxh6+ {[%clk 0:01:25]} 37. gxh6 {[%clk 0:00:03]}  e2 {[%clk 0:01:26]} 0-1


[Site "https://www.chess.com"]